lending/lending_fUSD_20250808
["ID","MTS","AMOUNT","RATE_DAILY","PERIOD"]
[378032314,1754674352357,-786.33,0.00021405,2]
[378032315,1754674352367,-462.34,0.00021405,2]
[378032316,1754674352376,-400.0,0.00021405,2]
[378032317,1754674352385,-400.0,0.00021405,2]
[378032318,1754674352394,-400.0,0.00021405,2]
[378032319,1754674352404,-933.94,0.00021405,2]
[378032320,1754674352413,-1309.0,0.00021405,2]
[378032321,1754674352424,-630.93,0.00021405,2]
[378032322,1754674352434,-1106.53,0.00021405,2]
[378032323,1754674352443,-1201.36,0.00021405,2]
[378032324,1754674352453,-400.0,0.00021405,2]
[378032325,1754674352462,-623.4,0.00021405,2]
[378032326,1754674352471,-1959.17,0.00021405,2]
[378032327,1754674352480,-1959.17,0.00021405,2]
[378032328,1754674352491,-400.0,0.00021405,2]
[378032329,1754674352500,-948.04,0.00021405,2]
[378032330,1754674352509,-1232.12,0.00021405,2]
[378032331,1754674352518,-501.95,0.00021405,2]
[378032332,1754674352527,-400.0,0.00021405,2]
[378032333,1754674352536,-1029.5,0.00021405,2]
[378032334,1754674352545,-400.0,0.00021405,2]
[378032335,1754674352554,-400.0,0.00021405,2]
[378032336,1754674352564,-1075.7,0.00021405,2]
[378032337,1754674352574,-1017.42,0.00021405,2]
[378032338,1754674352584,-400.0,0.00021405,2]
[378032339,1754674352593,-467.67,0.00021405,2]
[378032340,1754674352602,-743.32,0.00021405,2]
[378032341,1754674352612,-466.11,0.00021405,2]
[378032342,1754674352621,-496.93,0.00021405,2]
[378032343,1754674352630,-400.0,0.00021405,2]
[378032344,1754674352639,-400.0,0.00021405,2]
[378032345,1754674352648,-1260.4,0.00021405,2]
[378032346,1754674352657,-470.18,0.00021405,2]
[378032347,1754674352666,-2588.08,0.00021405,2]
[378032348,1754674352676,-400.0,0.00021405,2]
[378032349,1754674352685,-641.02,0.00021405,2]
[378032350,1754674352695,-3797.91,0.00021405,2]
[378032351,1754674352704,-400.0,0.00021405,2]
[378032352,1754674352714,-400.0,0.00021405,2]
[378032353,1754674352723,-1052.14,0.00021405,2]
[378032354,1754674352732,-889.41,0.00021405,2]
[378032355,1754674352743,-739.75,0.00021405,2]
[378032356,1754674352753,-1099.06,0.00021405,2]
[378032357,1754674352762,-1630.68,0.00021405,2]
[378032358,1754674352771,-3365.51,0.00021405,2]
[378032359,1754674352782,-1750.29,0.00021405,2]
[378032360,1754674352791,-2289.35,0.00021405,2]
[378032361,1754674352801,-1124.14,0.00021405,2]
[378032362,1754674352810,-400.0,0.00021405,2]
[378032363,1754674352820,-838.76,0.00021405,2]
[378032364,1754674352829,-1564.85,0.00021405,2]
[378032365,1754674352839,-752.21,0.00021405,2]
[378032366,1754674352848,-1259.02,0.00021405,2]
[378032367,1754674352858,-1360.45,0.00021405,2]
[378032368,1754674352867,-400.0,0.00021405,2]
[378032369,1754674352877,-447.46,0.00021405,2]
[378032370,1754674352886,-400.0,0.00021405,2]
[378032371,1754674352895,-457.11,0.00021405,2]
[378032372,1754674352905,-907.31,0.00021405,2]
[378032373,1754674352915,-635.96,0.00021405,2]
[378032374,1754674352924,-516.43,0.00021405,2]
[378032375,1754674352934,-2511.44,0.00021405,2]
[378032376,1754674353047,-841.87,0.00021405,2]
[378032377,1754674353056,-400.0,0.00021405,2]
[378032378,1754674353066,-909.41,0.00021405,2]
[378032379,1754674353076,-400.0,0.00021405,2]
[378032380,1754674353090,-633.54,0.00021405,2]
[378032381,1754674353100,-1757.88,0.00021405,2]
[378032382,1754674353109,-3698.85,0.00021405,2]
[378032383,1754674353119,-400.0,0.00021405,2]
[378032384,1754674353129,-1660.57,0.00021405,2]
[378032385,1754674353138,-748.76,0.00021405,2]
[378032386,1754674353148,-466.12,0.00021405,2]
[378032387,1754674353158,-724.03,0.00021405,2]
[378032388,1754674353170,-2130.8,0.00021405,2]
[378032389,1754674353179,-420.45,0.00021405,2]
[378032390,1754674353188,-1000.99,0.00021405,2]
[378032391,1754674353197,-956.66,0.00021405,2]
[378032392,1754674353207,-825.21,0.00021405,2]
[378032393,1754674353216,-1301.7,0.00021405,2]
[378032394,1754674353225,-400.0,0.00021405,2]
[378032395,1754674353234,-1094.31,0.00021405,2]
[378032396,1754674353244,-815.06,0.00021405,2]
[378032397,1754674353253,-498.58,0.00021405,2]
[378032398,1754674353262,-1195.76,0.00021405,2]
[378032399,1754674353272,-442.27,0.00021405,2]
[378032400,1754674353281,-552.06,0.00021405,2]
[378032401,1754674353290,-484.27,0.00021405,2]
[378032402,1754674353299,-624.41,0.00021405,2]
[378032403,1754674353308,-2556.32,0.00021405,2]
[378032404,1754674353317,-844.68,0.00021405,2]
[378032405,1754674353327,-440.75,0.00021405,2]
[378032406,1754674353336,-1182.8,0.00021405,2]
[378032407,1754674353345,-1893.37,0.00021405,2]
[378032408,1754674353354,-400.0,0.00021405,2]
[378032409,1754674353363,-520.64,0.00021405,2]
[378032410,1754674353373,-524.52,0.00021405,2]
[378032411,1754674353384,-3101.03,0.00021405,2]
[378032412,1754674353397,-616.08,0.00021405,2]
[378032413,1754674353407,-732.88,0.00021405,2]
[378032414,1754674353418,-856.38,0.00021405,2]
[378032415,1754674353432,-4832.78,0.00021405,2]
[378032416,1754674353444,-627.0,0.00021405,2]
[378032417,1754674353456,-952.86,0.00021405,2]
[378032418,1754674353467,-400.0,0.00021405,2]
[378032419,1754674353476,-480.32,0.00021405,2]
[378032420,1754674353485,-1841.68,0.00021405,2]
[378032421,1754674353496,-3627.65,0.00021405,2]
[378032422,1754674353506,-400.0,0.00021405,2]
[378032423,1754674353516,-803.51,0.00021405,2]
[378032424,1754674353525,-429.23,0.00021405,2]
[378032425,1754674353535,-781.89,0.00021405,2]
[378032426,1754674353544,-467.89,0.00021405,2]
[378032427,1754674353553,-1163.42,0.00021405,2]
[378032428,1754674353563,-1771.62,0.00021405,2]
[378032429,1754674353572,-585.49,0.00021405,2]
[378032430,1754674353581,-784.71,0.00021405,2]
[378032431,1754674353591,-842.16,0.00021405,2]
[378032432,1754674353600,-971.72,0.00021405,2]
[378032433,1754674353609,-437.29,0.00021405,2]
[378032434,1754674353619,-498.13,0.00021405,2]
[378032435,1754674353628,-1364.1,0.00021405,2]
[378032436,1754674353639,-4194.96,0.00021405,2]
[378032437,1754674353650,-3720.86,0.00021405,2]
[378032438,1754674353660,-482.49,0.00021405,2]
[378032439,1754674353670,-932.41,0.00021405,2]
[378032440,1754674353680,-400.0,0.00021405,2]
[378032441,1754674353690,-467.73,0.00021405,2]
[378032442,1754674353700,-694.04,0.00021405,2]
[378032443,1754674353709,-785.65,0.00021405,2]
[378032444,1754674353719,-1073.17,0.00021405,2]
[378032445,1754674353728,-2564.99,0.00021405,2]
[378032446,1754674353739,-1271.83,0.00021405,2]
[378032447,1754674353748,-400.0,0.00021405,2]
[378032448,1754674353758,-501.58,0.00021405,2]
[378032449,1754674353767,-561.21,0.00021405,2]
[378032450,1754674353777,-695.37,0.00021405,2]
[378032451,1754674353787,-1291.31,0.00021405,2]
[378032452,1754674353797,-400.0,0.00021405,2]
[378032453,1754674353806,-1430.86,0.00021405,2]
[378032454,1754674353816,-3151.61,0.00021405,2]
[378032455,1754674353825,-836.4,0.00021405,2]
[378032456,1754674353835,-421.02,0.00021405,2]
[378032457,1754674353844,-850.6,0.00021405,2]
[378032458,1754674353854,-2829.87,0.00021405,2]
[378032459,1754674353864,-400.0,0.00021405,2]
[378032460,1754674353874,-3147.45,0.00021405,2]
[378032461,1754674353883,-2412.01,0.00021405,2]
[378032462,1754674353894,-3174.96,0.00021405,2]
[378032463,1754674353903,-1344.29,0.00021405,2]
[378032464,1754674353913,-475.15,0.00021406,2]
[378032465,1754674353922,-400.0,0.00021406,2]
[378032466,1754674353931,-400.0,0.00021406,2]
[378032467,1754674353940,-400.0,0.00021406,2]
[378032468,1754674353950,-400.0,0.00021406,2]
[378032469,1754674353959,-400.0,0.00021406,2]
[378032470,1754674353969,-400.0,0.00021406,2]
[378032471,1754674353978,-400.0,0.00021406,2]
[378032472,1754674353988,-400.0,0.00021406,2]
[378032473,1754674353998,-400.0,0.00021406,2]
[378032474,1754674354007,-300.0,0.00021406,2]
[378032475,1754674354017,-613.14,0.00021406,2]
[378032476,1754674354026,-400.0,0.00021406,2]
[378032477,1754674354035,-487.53,0.00021406,2]
[378032478,1754674354045,-400.0,0.00021406,2]
[378032479,1754674354054,-470.26,0.00021406,2]
[378032480,1754674354063,-400.0,0.00021406,2]
[378032481,1754674354072,-400.0,0.00021406,2]
[378032482,1754674354081,-400.0,0.00021406,2]
[378032483,1754674354094,-544.91905291,0.00021406,2]
[378032484,1754674354104,-400.0,0.00021406,2]
[378032485,1754674354113,-400.0,0.00021406,2]
[378032486,1754674354122,-462.27,0.00021406,2]
[378032487,1754674354132,-580.1,0.00021406,2]
[378032488,1754674354142,-400.0,0.00021406,2]
[378032489,1754674354151,-400.0,0.00021406,2]
[378032490,1754674354161,-400.0,0.00021406,2]
[378032491,1754674354171,-197.20336239,0.00021406,2]
[378032492,1754674354180,-479.7,0.00021406,2]
[378032493,1754674354189,-568.03,0.00021406,2]
[378032494,1754674354198,-400.0,0.00021406,2]
[378032495,1754674354207,-400.0,0.00021406,2]
[378032496,1754674354217,-421.44,0.00021406,2]
[378032497,1754674354226,-418.64,0.00021406,2]
[378032498,1754674354235,-504.49,0.00021406,2]
[378032499,1754674354245,-700.9,0.00021406,2]
[378032500,1754674354255,-400.0,0.00021406,2]
[378032501,1754674354265,-520.77,0.00021406,2]
[378032502,1754674354274,-400.0,0.00021406,2]
[378032503,1754674354284,-400.0,0.00021406,2]
[378032504,1754674354293,-400.0,0.00021406,2]
[378032505,1754674354302,-400.0,0.00021406,2]
[378032506,1754674354311,-477.16146643,0.00021406,2]
[378032507,1754674354320,-400.0,0.00021406,2]
[378032508,1754674354329,-400.0,0.00021406,2]
[378032509,1754674354339,-400.0,0.00021406,2]
[378032510,1754674354349,-484.85,0.00021406,2]
[378032511,1754674354358,-432.17,0.00021406,2]
[378032512,1754674354367,-400.0,0.00021406,2]
[378032513,1754674354376,-1178.17,0.00021406,2]
[378032514,1754674354385,-456.42,0.00021406,2]
[378032515,1754674354394,-400.0,0.00021406,2]
[378032516,1754674354403,-400.0,0.00021406,2]
[378032517,1754674354413,-534.77,0.00021406,2]
[378032518,1754674354422,-400.0,0.00021406,2]
[378032519,1754674354431,-400.0,0.00021406,2]
[378032520,1754674354440,-435.31,0.00021406,2]
[378032521,1754674354450,-4517.84,0.00021406,2]
[378032522,1754674354459,-400.0,0.00021406,2]
[378032523,1754674354468,-477.72,0.00021406,2]
[378032524,1754674354477,-400.0,0.00021406,2]
[378032525,1754674354486,-400.0,0.00021406,2]
[378032526,1754674354496,-4062.08,0.00021406,2]
[378032527,1754674354505,-400.0,0.00021406,2]
[378032528,1754674354514,-400.0,0.00021406,2]
[378032529,1754674354523,-400.0,0.00021406,2]
[378032530,1754674354532,-735.5,0.00021406,2]
[378032531,1754674354541,-1368.24,0.00021406,2]
[378032532,1754674354551,-168.13129975,0.00021406,2]
[378032533,1754674354560,-400.0,0.00021406,2]
[378032534,1754674354570,-400.0,0.00021406,2]
[378032535,1754674354579,-400.0,0.00021406,2]
[378032536,1754674354588,-400.0,0.00021406,2]
[378032537,1754674354598,-400.0,0.00021406,2]
[378032538,1754674354607,-1187.72,0.00021406,2]
[378032539,1754674354616,-400.0,0.00021406,2]
[378032540,1754674354625,-450.77,0.00021406,2]
[378032541,1754674354634,-400.0,0.00021406,2]
[378032542,1754674354644,-400.0,0.00021406,2]
[378032543,1754674354653,-400.0,0.00021406,2]
[378032544,1754674354662,-1471.83,0.00021406,2]
[378032545,1754674354671,-557.2,0.00021406,2]
[378032546,1754674354682,-400.0,0.00021406,2]
[378032547,1754674354691,-436.5,0.00021406,2]
[378032548,1754674354701,-439.47,0.00021406,2]
[378032549,1754674354710,-1359.72,0.00021406,2]
[378032550,1754674354720,-400.0,0.00021406,2]
[378032551,1754674354729,-1098.38,0.00021406,2]
[378032552,1754674354740,-400.0,0.00021406,2]
[378032553,1754674354749,-457.21371746,0.00021406,2]
[378032554,1754674354759,-505.49,0.00021406,2]
[378032555,1754674354768,-493.47,0.00021406,2]
[378032556,1754674354777,-400.0,0.00021406,2]
[378032557,1754674354786,-400.0,0.00021406,2]
[378032558,1754674354795,-412.55,0.00021406,2]
[378032559,1754674354805,-496.49,0.00021406,2]
[378032560,1754674354814,-808.39,0.00021406,2]
[378032561,1754674354823,-400.0,0.00021406,2]
[378032562,1754674354832,-400.0,0.00021406,2]
[378032563,1754674354843,-400.0,0.00021406,2]
[378032564,1754674354852,-400.0,0.00021406,2]
[378032565,1754674354861,-1155.05,0.00021406,2]
[378032566,1754674354871,-485.06,0.00021406,2]
[378032567,1754674354880,-521.07,0.00021406,2]
[378032568,1754674354891,-643.05,0.00021406,2]
[378032569,1754674354900,-489.19,0.00021406,2]
[378032570,1754674354909,-400.0,0.00021406,2]
[378032571,1754674354919,-760.76,0.00021406,2]
[378032572,1754674354929,-576.62,0.00021406,2]
[378032573,1754674354938,-437.71,0.00021406,2]
[378032574,1754674354948,-704.59,0.00021406,2]
[378032575,1754674354957,-919.49,0.00021406,2]
[378032576,1754674354966,-1259.56,0.00021406,2]
[378032577,1754674354976,-508.27,0.00021406,2]
[378032578,1754674354985,-336.17684631,0.00021406,2]
[378032579,1754674354996,-400.0,0.00021406,2]
[378032580,1754674355005,-1124.56,0.00021406,2]
[378032581,1754674355015,-2507.35,0.00021406,2]
[378032582,1754674355025,-424.0,0.00021406,2]
[378032583,1754674355035,-400.0,0.00021406,2]
[378032584,1754674355044,-1219.23,0.00021406,2]
[378032585,1754674355054,-400.0,0.00021406,2]
[378032586,1754674355063,-400.0,0.00021406,2]
[378032587,1754674355073,-738.95,0.00021406,2]
[378032588,1754674355082,-739.75,0.00021406,2]
[378032589,1754674355095,-705.62,0.00021406,2]
[378032590,1754674355106,-429.41,0.00021406,2]
[378032591,1754674355115,-408.09,0.00021406,2]
[378032592,1754674355125,-22590.06,0.00021406,2]
[378032593,1754674355138,-400.0,0.00021406,2]
[378032594,1754674355148,-400.0,0.00021406,2]
[378032595,1754674355157,-444.79,0.00021406,2]
[378032596,1754674355167,-400.0,0.00021406,2]
[378032597,1754674355177,-1009.83,0.00021406,2]
[378032598,1754674355187,-278.97,0.00021406,2]
[378032599,1754674355196,-612.57,0.00021406,2]
[378032600,1754674355207,-400.0,0.00021406,2]
[378032601,1754674355218,-412.85,0.00021406,2]
[378032602,1754674355227,-1019.52,0.00021406,2]
[378032603,1754674355239,-400.0,0.00021406,2]
[378032604,1754674355248,-457.08036362,0.00021406,2]
[378032605,1754674355258,-602.24,0.00021406,2]
[378032606,1754674355268,-400.0,0.00021406,2]
[378032607,1754674355277,-702.83,0.00021406,2]
[378032608,1754674355287,-400.0,0.00021406,2]
[378032609,1754674355297,-400.0,0.00021406,2]
[378032610,1754674355307,-401.02,0.00021406,2]
[378032611,1754674355317,-480.03,0.00021406,2]
[378032612,1754674355326,-414.37,0.00021406,2]
[378032613,1754674355336,-400.0,0.00021406,2]
[378032614,1754674355345,-420.84,0.00021406,2]
[378032615,1754674355355,-469.13,0.00021406,2]
[378032616,1754674355365,-1156.43,0.00021406,2]
[378032617,1754674355374,-1173.27,0.00021406,2]
[378032618,1754674355383,-414.41,0.00021406,2]
[378032619,1754674355392,-2082.95,0.00021406,2]
[378032620,1754674355402,-400.0,0.00021406,2]
[378032621,1754674355411,-1355.51,0.00021406,2]
[378032622,1754674355421,-400.0,0.00021406,2]
[378032623,1754674355431,-712.97,0.00021406,2]
[378032624,1754674355441,-400.0,0.00021406,2]
[378032625,1754674355450,-1433.19,0.00021406,2]
[378032626,1754674355460,-400.0,0.00021406,2]
[378032627,1754674355469,-1279.98,0.00021406,2]
[378032628,1754674355479,-400.0,0.00021406,2]
[378032629,1754674355490,-2544.43,0.00021406,2]
[378032630,1754674355499,-545.33,0.00021406,2]
[378032631,1754674355509,-3304.91,0.00021406,2]
[378032632,1754674355518,-1361.67,0.00021406,2]
[378032633,1754674355528,-680.15,0.00021406,2]
[378032634,1754674355537,-446.42,0.00021406,2]
[378032635,1754674355547,-1015.86,0.00021406,2]
[378032636,1754674355557,-400.0,0.00021406,2]
[378032637,1754674355567,-400.0,0.00021406,2]
[378032638,1754674355577,-400.0,0.00021406,2]
[378032639,1754674355587,-472.84,0.00021406,2]
[378032640,1754674355596,-6584.79,0.00021406,2]
[378032641,1754674355606,-400.0,0.00021406,2]
[378032642,1754674355616,-645.58,0.00021406,2]
[378032643,1754674355626,-381.20614733,0.00021406,2]
[378032644,1754674355635,-434.44,0.00021406,2]
[378032645,1754674355645,-510.44,0.00021406,2]
[378032646,1754674355654,-400.0,0.00021406,2]
[378032647,1754674355664,-400.0,0.00021406,2]
[378032648,1754674355673,-400.0,0.00021406,2]
[378032649,1754674355683,-637.96,0.00021406,2]
[378032650,1754674355692,-400.0,0.00021406,2]
[378032651,1754674355702,-4087.5,0.00021406,2]
[378032652,1754674355712,-400.0,0.00021406,2]
[378032653,1754674355721,-1167.59,0.00021406,2]
[378032654,1754674355731,-839.14,0.00021406,2]
[378032655,1754674355742,-423.67,0.00021406,2]
[378032656,1754674355752,-400.0,0.00021406,2]
[378032657,1754674355761,-1923.32,0.00021406,2]
[378032658,1754674355772,-2534.72,0.00021406,2]
[378032659,1754674355782,-3221.54,0.00021406,2]
[378032660,1754674355798,-400.0,0.00021406,2]
[378032661,1754674355808,-2686.59,0.00021406,2]
[378032662,1754674355818,-2767.77,0.00021406,2]
[378032663,1754674355828,-4079.49,0.00021406,2]
[378032664,1754674355848,-1045.66,0.00021406,2]
[378032665,1754674355858,-3290.29,0.00021407,2]
[378032666,1754674355868,-2369.18,0.00021407,2]
[378032667,1754674355878,-13166.57,0.00021407,2]
[378032668,1754674355888,-1590.7,0.00021407,2]
[378032669,1754674355898,-1258.97,0.00021407,2]
[378032670,1754674355909,-2052.34,0.00021407,2]
[378032671,1754674355920,-508.01,0.00021407,2]
[378032672,1754674355931,-5234.06,0.00021407,2]
[378032673,1754674355943,-400.0,0.00021407,2]
[378032674,1754674355953,-2455.21,0.00021407,2]
[378032675,1754674355963,-1846.96,0.00021407,2]
[378032676,1754674355973,-1243.92,0.00021407,2]
[378032677,1754674355983,-1638.01,0.00021407,2]
[378032678,1754674355994,-1639.76,0.00021407,2]
[378032679,1754674356004,-1386.66,0.00021407,2]
[378032680,1754674356014,-2763.15,0.00021407,2]
[378032681,1754674356024,-3536.52,0.00021407,2]
[378032682,1754674356035,-2140.87,0.00021407,2]
[378032683,1754674356045,-1711.31,0.00021407,2]
[378032684,1754674356056,-449.95,0.00021407,2]
[378032685,1754674356066,-5000.0,0.00021446,2]
[378032686,1754674356075,-258.94505018,0.00021467,5]
[378032687,1754674356085,-150.0,0.00021467,5]
[378032688,1754674356100,-5000.0,0.00021487,2]
[378032689,1754674356110,-217.21963113,0.000215,2]
[378032690,1754674356119,-2442.32,0.000215,2]
[378032691,1754674356129,-5000.0,0.00021508,2]
[378032692,1754674356139,-902.45,0.00021541,2]
[378032693,1754674356150,-25000.0,0.00021543,2]
[378032694,1754674356160,-447.50625742,0.00021581,2]
[378032695,1754674356173,-5000.0,0.00021588,2]
[378032696,1754674356182,-1877.0,0.000216,5]
[378032697,1754674356191,-1817.27,0.00021632,2]
[378032698,1754674356201,-5000.0,0.00021657,2]
[378032699,1754674356210,-350.0,0.00021668,2]
[378032700,1754674356219,-400.0,0.00021678,2]
[378032701,1754674356229,-400.0,0.00021678,2]
[378032702,1754674356240,-661.11,0.00021678,2]
[378032703,1754674356250,-2954.91,0.00021678,2]
[378032704,1754674356259,-2275.54,0.00021678,2]
[378032705,1754674356269,-946.48,0.00021678,2]
[378032706,1754674356278,-7691.76,0.00021678,2]
[378032707,1754674356288,-848.32,0.00021678,2]
[378032708,1754674356297,-1032.75,0.00021678,2]
[378032709,1754674356307,-600.19,0.00021678,2]
[378032710,1754674356317,-1855.93,0.00021678,2]
[378032711,1754674356327,-675.93,0.00021678,2]
[378032712,1754674356336,-5291.16,0.00021678,2]
[378032713,1754674356346,-3569.89,0.00021678,2]
[378032714,1754674356356,-2731.24,0.00021678,2]
[378032715,1754674356366,-643.22,0.00021678,2]
[378032716,1754674356376,-1935.23,0.00021678,2]
[378032717,1754674356385,-821.85,0.00021678,2]
[378032718,1754674356395,-774.94,0.00021678,2]
[378032719,1754674356404,-447.97,0.00021678,2]
[378032720,1754674356414,-538.44,0.00021678,2]
[378032721,1754674356424,-947.0,0.00021679,2]
[378032722,1754674356434,-1798.0,0.00021679,2]
[378032723,1754674356445,-977.0,0.00021679,2]
[378032724,1754674356464,-155.776285,0.00021679,2]
[378032725,1754674356481,-183.659282,0.00021679,2]
[378032726,1754674356491,-1000.0,0.00021679,2]
[378032727,1754674356500,-2162.28,0.00021679,2]
[378032728,1754674356510,-788.52,0.00021679,2]
[378032729,1754674356519,-606.57,0.00021679,2]
[378032730,1754674356529,-691.64,0.00021679,2]
[378032731,1754674356539,-504.23,0.00021679,2]
[378032732,1754674356549,-711.68,0.00021679,2]
[378032733,1754674356559,-672.8,0.00021679,2]
[378032734,1754674356569,-767.72,0.00021679,2]
[378032735,1754674356579,-411.37,0.00021679,2]
[378032736,1754674356588,-692.39,0.00021679,2]
[378032737,1754674356599,-460.18,0.00021679,2]
[378032738,1754674356608,-680.33,0.00021679,2]
[378032739,1754674356618,-418.64,0.00021679,2]
[378032740,1754674356628,-400.0,0.00021679,2]
[378032741,1754674356638,-1053.65,0.00021679,2]
[378032742,1754674356647,-591.98,0.00021679,2]
[378032743,1754674356657,-400.0,0.00021679,2]
[378032744,1754674356667,-400.0,0.00021679,2]
[378032745,1754674356677,-400.0,0.00021679,2]
[378032746,1754674356687,-820.42,0.00021679,2]
[378032747,1754674356696,-540.05,0.00021679,2]
[378032748,1754674356706,-444.75,0.00021679,2]
[378032749,1754674356716,-400.0,0.00021679,2]
[378032750,1754674356726,-475.1,0.00021679,2]
[378032751,1754674356736,-1065.2,0.00021679,2]
[378032752,1754674356747,-663.95,0.00021679,2]
[378032753,1754674356757,-664.58,0.00021679,2]
[378032754,1754674356767,-552.2,0.00021679,2]
[378032755,1754674356777,-795.59,0.00021679,2]
[378032756,1754674356786,-400.0,0.00021679,2]
[378032757,1754674356796,-1009.8,0.00021679,2]
[378032758,1754674356806,-400.0,0.00021679,2]
[378032759,1754674356816,-400.0,0.00021679,2]
[378032760,1754674356826,-758.91,0.00021679,2]
[378032761,1754674356836,-407.58268578,0.00021679,2]
[378032762,1754674356846,-400.0,0.00021679,2]
[378032763,1754674356856,-405.9,0.00021679,2]
[378032764,1754674356866,-794.09,0.00021679,2]
[378032765,1754674356875,-860.42,0.00021679,2]
[378032766,1754674356885,-497.38,0.00021679,2]
[378032767,1754674356895,-400.0,0.00021679,2]
[378032768,1754674356905,-675.98,0.00021679,2]
[378032769,1754674356915,-400.0,0.00021679,2]
[378032770,1754674356925,-1322.96,0.00021679,2]
[378032771,1754674356935,-515.94,0.00021679,2]
[378032772,1754674356945,-492.09,0.00021679,2]
[378032773,1754674356955,-1269.65,0.00021679,2]
[378032774,1754674356965,-1150.11,0.00021679,2]
[378032775,1754674356975,-729.76,0.00021679,2]
[378032776,1754674356987,-786.33,0.00021679,2]
[378032777,1754674357000,-400.0,0.00021679,2]
[378032778,1754674357010,-400.0,0.00021679,2]
[378032779,1754674357020,-400.0,0.00021679,2]
[378032780,1754674357030,-933.94,0.00021679,2]
[378032781,1754674357252,-1309.0,0.00021679,2]
[378032782,1754674357262,-630.93,0.00021679,2]
[378032783,1754674357272,-1106.53,0.00021679,2]
[378032784,1754674357281,-1201.36,0.00021679,2]
[378032785,1754674357291,-400.0,0.00021679,2]
[378032786,1754674357301,-623.4,0.00021679,2]
[378032787,1754674357311,-1959.17,0.00021679,2]
[378032788,1754674357321,-1959.17,0.00021679,2]
[378032789,1754674357330,-400.0,0.00021679,2]
[378032790,1754674357339,-948.04,0.00021679,2]
[378032791,1754674357349,-1232.12,0.00021679,2]
[378032792,1754674357359,-501.95,0.00021679,2]
[378032793,1754674357368,-400.0,0.00021679,2]
[378032794,1754674357378,-1029.5,0.00021679,2]
[378032795,1754674357387,-400.0,0.00021679,2]
[378032796,1754674357397,-400.0,0.00021679,2]
[378032797,1754674357407,-1075.7,0.00021679,2]
[378032798,1754674357417,-1017.42,0.00021679,2]
[378032799,1754674357426,-400.0,0.00021679,2]
[378032800,1754674357435,-467.67,0.00021679,2]
[378032801,1754674357445,-743.32,0.00021679,2]
[378032802,1754674357454,-466.11,0.00021679,2]
[378032803,1754674357463,-496.93,0.00021679,2]
[378032804,1754674357473,-400.0,0.00021679,2]
[378032805,1754674357482,-400.0,0.00021679,2]
[378032806,1754674357493,-1260.4,0.00021679,2]
[378032807,1754674357503,-470.18,0.00021679,2]
[378032808,1754674357512,-2588.08,0.00021679,2]
[378032809,1754674357522,-400.0,0.00021679,2]
[378032810,1754674357532,-641.02,0.00021679,2]
[378032811,1754674357543,-3797.91,0.00021679,2]
[378032812,1754674357554,-400.0,0.00021679,2]
[378032813,1754674357564,-205.14740417,0.00021679,2]